bitfinex-derivatives/quotes_ETHF0:USTF0_20250101
["timestamp","ask_amount","ask_price","bid_price","bid_amount"]
[1735772810938,0.29768,3366.1,3366.0,0.29769]
[1735772811440,0.36969816,3366.2,3366.1,0.29768]
[1735772811641,1.158,3366.7,3365.9,3.2078]
[1735772811837,2.24550359,3366.5,3366.0,0.5664]
[1735772812143,0.29767,3366.3,3366.1,0.29768]
[1735772812643,0.2977,3366.0,3365.7,1.188]
[1735772812844,0.29771,3365.9,3365.7,1.48572]
[1735772813040,2.24550359,3365.9,3365.4,1.188]
[1735772813238,1.1505,3366.1,3365.4,1.188]
[1735772813440,0.2977,3366.0,3365.7,0.29771]
[1735772813739,4.72755629,3366.1,3365.5,0.29774]
[1735772813947,0.29772,3365.8,3365.4,1.188]
[1735772814139,0.36929975,3366.0,3365.6,0.29773]
[1735772814340,4.3583,3366.1,3365.6,0.29773]
[1735772814341,0.29771,3365.9,3365.6,0.29773]
[1735772814841,0.2977,3366.0,3365.7,0.29771]
[1735772815042,0.2977,3366.0,3365.4,1.188]
[1735772815343,0.2977,3366.0,3365.8,0.29771]
[1735772815745,1.1505,3366.1,3365.4,1.188]
[1735772815938,0.29771,3365.9,3365.7,0.29772]
[1735772816346,0.5867,3366.1,3366.0,0.29769]
[1735772818143,0.5862,3366.2,3366.1,0.29768]
[1735772818849,0.5843,3366.4,3366.3,0.29767]
[1735772820548,3.14055359,3366.5,3366.0,0.6262]
[1735772820750,0.5974,3366.5,3366.4,0.29766]
[1735772821248,2.24550359,3366.8,3366.6,0.29764]
[1735772821249,0.29764,3366.7,3366.6,0.29764]
[1735772821446,3.18753359,3366.8,3366.7,0.29763]
[1735772821651,0.29763,3366.7,3366.6,0.29763]
[1735772821847,2.88990359,3366.8,3366.7,0.29763]
[1735772822048,0.6444,3366.8,3366.7,0.29763]
[1735772822347,0.6444,3366.8,3366.4,0.74414]
[1735772822348,3.2078,3367.0,3366.9,0.29761]
[1735772822651,3.2078,3367.4,3366.7,3.2078]
[1735772822850,3.2078,3367.4,3367.3,0.29758]
[1735772823157,3.50537,3367.4,3367.3,0.29758]
[1735772825163,3.2078,3367.4,3367.3,0.29758]
[1735772825455,4.78264,3367.8,3367.7,0.29754]
[1735772825652,4.4851,3367.8,3367.7,0.29754]
[1735772826560,1.2773,3367.8,3367.7,0.29754]
[1735772827066,0.29755,3367.6,3367.5,0.29756]
[1735772827254,1.2773,3367.8,3367.2,0.649]
[1735772827457,0.29755,3367.7,3367.5,0.29755]
[1735772828458,3.2078,3367.8,3367.2,0.649]
[1735772828761,2.24550359,3368.0,3367.2,0.649]
[1735772828962,0.29756,3367.6,3367.1,3.2078]
[1735772829157,0.29756,3367.6,3367.3,0.29757]
[1735772829359,0.6365,3367.5,3367.3,0.29757]
[1735772829562,0.6365,3367.5,3367.4,0.29757]
[1735772829962,0.6365,3367.5,3367.0,2.4403]
[1735772830262,0.6365,3367.5,3367.4,0.29757]
[1735772835563,0.6365,3367.5,3366.8,0.6262]
[1735772835564,0.29759,3367.2,3366.6,5.13889]
[1735772835764,0.29759,3367.2,3366.9,0.29761]
[1735772835969,0.9354,3367.1,3366.9,0.29761]
[1735772836266,0.2976,3367.0,3366.9,0.29761]
[1735772836470,0.9358,3367.0,3366.9,0.29761]
[1735772836869,0.6382,3367.0,3366.9,0.29761]
[1735772837171,0.93581,3367.0,3366.8,0.29762]
[1735772837470,0.6293,3366.9,3366.8,0.29762]
[1735772840470,0.29763,3366.7,3366.6,3.2078]
[1735772841170,0.6293,3366.9,3366.6,3.2078]
[1735772841372,0.6293,3366.9,3366.8,0.29762]
[1735772842676,0.6382,3367.0,3366.9,0.29761]
[1735772846273,0.9358,3367.0,3366.9,0.29761]
[1735772847076,0.6382,3367.0,3366.9,0.29761]
[1735772847277,0.9358,3367.0,3366.9,0.29761]
[1735772848375,0.6382,3367.0,3366.9,0.29761]
[1735772852274,0.9358,3367.0,3366.9,0.29761]
[1735772853176,0.6382,3367.0,3366.9,0.29761]
[1735772853377,0.97304709,3367.2,3367.1,0.2976]
[1735772853576,3.2078,3367.3,3367.2,0.29759]
[1735772853878,3.2078,3367.3,3367.2,41.09759]
[1735772854578,3.2078,3367.3,3367.2,0.29759]
[1735772855174,3.2078,3367.7,3367.6,0.29754]
[1735772855670,3.50534,3367.7,3367.6,0.29754]
[1735772855875,3.2078,3367.7,3367.6,0.29754]
[1735772857178,0.29755,3367.6,3367.3,1.189]
[1735772857376,0.29757,3367.4,3367.3,1.48658]
[1735772857783,0.91697,3367.4,3367.3,1.189]
[1735772858680,0.6194,3367.4,3367.3,1.189]
[1735772858977,0.91697,3367.4,3367.3,1.48658]
[1735772859378,0.6194,3367.4,3366.9,3.2078]
[1735772859688,2.24550359,3367.2,3366.6,1.189]
[1735772859882,0.2976,3367.1,3367.0,0.2976]
[1735772860881,0.8942,3367.1,3367.0,0.2976]
[1735772861080,0.5966,3367.1,3367.0,0.2976]
[1735772861484,0.8942,3367.1,3366.7,1.1881]
[1735772861680,0.8942,3367.1,3367.0,0.2976]
[1735772864388,0.5966,3367.1,3367.0,0.2976]
[1735772864977,0.8942,3367.1,3366.9,0.29761]
[1735772865179,0.8942,3367.1,3367.0,0.2976]
[1735772866079,0.8942,3367.1,3366.8,0.6332]
[1735772866080,0.5966,3367.1,3365.7,4.67514002]
[1735772866283,0.29766,3366.4,3366.2,0.29767]
[1735772866483,6.19744359,3366.5,3365.8,0.93381]
[1735772866686,0.29768,3366.2,3365.8,0.6361]
[1735772866986,0.29768,3366.2,3366.0,0.29769]
[1735772868484,1.2379,3366.3,3365.8,0.6361]
[1735772868685,2.24550359,3366.7,3366.6,0.29764]
[1735772868894,2.24550359,3366.7,3366.5,0.29764]
[1735772868895,2.54313359,3366.7,3366.5,0.29764]
[1735772869079,1.2485,3366.6,3366.5,0.29764]
[1735772869485,1.61880251,3366.6,3366.5,41.09764]
[1735772869887,0.29767,3366.3,3366.1,0.29768]
[1735772870188,0.29767,3366.3,3366.2,0.29767]
[1735772871089,2.54316359,3366.4,3366.3,0.29767]
[1735772871790,2.24550359,3366.4,3366.3,0.29767]
[1735772871994,3.50545,3366.5,3366.3,0.29767]
[1735772872293,0.29766,3366.4,3365.9,1.2025]
[1735772873285,1.2485,3366.6,3365.9,1.2025]
[1735772873492,1.2485,3366.6,3366.5,0.29765]
[1735772873897,1.54614,3366.6,3366.5,0.29765]
[1735772876594,0.29765,3366.5,3366.4,0.29765]
[1735772880491,1.2485,3366.6,3366.5,0.29765]
[1735772880492,1.54614,3366.6,3366.5,0.29765]
[1735772882696,1.54865505,3366.6,3366.5,0.29765]
[1735772883095,1.25101505,3366.6,3366.5,0.29765]
[1735772883294,1.54865505,3366.6,3366.5,0.29765]
[1735772883889,1.25101505,3366.6,3365.9,1.2025]
[1735772884194,0.29769,3366.0,3365.9,0.2977]
[1735772884600,1.51089,3366.0,3365.9,0.2977]
[1735772885199,0.29773,3365.7,3365.6,0.29771]
[1735772885594,0.29772,3365.7,3365.6,0.29772]
[1735772888494,0.29771,3365.8,3365.7,0.29772]
[1735772888895,4.421,3366.0,3365.5,0.6449]
[1735772889302,0.29771,3365.8,3365.7,0.29772]
[1735772889602,4.7187,3366.0,3365.9,0.2977]
[1735772889995,4.421,3366.0,3365.9,0.2977]
[1735772894204,1.2132,3366.0,3365.9,0.2977]
[1735772896906,3.2078,3366.4,3366.3,0.29767]
[1735772897108,3.50546,3366.4,3366.3,0.29767]
[1735772897295,3.87625205,3366.4,3366.3,0.29767]
[1735772897704,5.82409564,3366.4,3366.3,0.29767]
[1735772899207,3.57859205,3366.4,3366.3,0.29767]
[1735772899405,3.2078,3366.4,3366.3,0.29767]
[1735772899618,0.00251505,3366.6,3366.5,0.29765]
[1735772904915,0.00251505,3366.6,3366.5,0.89645]
[1735772910416,0.00251505,3366.6,3366.5,2.07445]
[1735772911709,1.2295,3367.6,3366.5,6.7768]
[1735772911904,1.2295,3367.6,3367.5,0.29756]
[1735772925728,0.6004,3367.6,3367.5,0.29756]
[1735772930037,0.63,3367.9,3367.8,0.29753]
[1735772930236,1.56805925,3368.4,3367.8,2.24550359]
[1735772930438,1.183,3368.4,3368.3,0.29749]
[1735772934235,0.98374652,3368.9,3368.2,1.17]
[1735772934442,1.2411,3368.8,3368.2,1.17]
[1735772934635,1.53855,3368.8,3368.2,1.17]
[1735772934832,1.53855,3368.8,3368.5,0.29746]
[1735772935241,2.24550359,3368.7,3368.2,1.17]
[1735772935543,0.29747,3368.5,3368.3,0.29749]
[1735772935743,0.29748,3368.5,3368.2,1.46749]
[1735772936243,3.2078,3368.6,3368.2,1.46749]
[1735772936442,0.2975,3368.2,3367.9,3.50532]
[1735772936642,1.9226,3368.1,3368.0,0.29751]
[1735772938544,1.9226,3368.1,3367.9,0.29752]
[1735772938746,1.9226,3368.1,3368.0,0.29752]
[1735772942140,0.37050759,3368.3,3367.9,1.17]
[1735772942449,3.57830759,3368.6,3368.5,0.29747]
[1735772942740,3.2078,3368.6,3368.5,0.29747]
[1735772942940,1.2355,3368.8,3368.7,0.29745]
[1735772944647,1.53295,3368.8,3368.7,0.29745]
[1735772946340,1.2355,3368.8,3368.7,0.29745]
[1735772946743,0.6283,3368.8,3368.7,0.29745]
[1735772949449,0.92575,3368.8,3368.7,0.29745]
[1735772949742,3.2078,3369.1,3368.6,1.17]
[1735772949943,3.2078,3369.5,3369.3,0.2974]
[1735772950141,0.6276,3369.4,3369.2,0.29741]
[1735772950347,0.6298,3369.3,3369.2,0.29741]
[1735772952238,0.6298,3369.3,3368.7,1.7917]
[1735772953043,0.29741,3369.2,3368.9,0.29743]
[1735772953239,5.45330359,3369.1,3368.3,3.2078]
[1735772953443,0.29748,3368.4,3368.3,3.2078]
[1735772953647,0.29748,3368.4,3368.3,3.50529]
[1735772953851,2.17458,3368.4,3368.3,3.50529]
[1735772954343,1.8771,3368.4,3368.3,3.50529]
[1735772954543,1.243,3368.4,3368.3,3.50529]
[1735772955952,1.243,3368.4,3368.3,0.29749]
[1735772956347,0.29749,3368.3,3368.2,0.29749]
[1735772956550,1.54048,3368.4,3368.3,0.29749]
[1735772960147,0.2975,3368.3,3368.2,0.2975]
[1735772960351,3.5053,3368.3,3368.2,0.2975]
[1735772960546,3.87541712,3368.3,3368.2,0.2975]
[1735772960948,3.57791712,3368.3,3367.8,3.2078]
[1735772961260,0.29755,3367.7,3367.6,0.29754]
[1735772962150,4.52212311,3367.8,3367.4,0.29756]
[1735772962461,0.2976,3367.1,3367.0,3.2078]
[1735772962752,3.2078,3367.1,3367.0,0.2976]
[1735772963153,4.451,3367.1,3367.0,0.2976]
[1735772963358,4.451,3367.1,3366.9,0.29761]
[1735772963557,4.451,3367.1,3366.5,0.6043]
[1735772963757,4.451,3367.1,3367.0,0.2976]
[1735772966455,3.2078,3367.1,3367.0,0.2976]
[1735772975058,3.2078,3367.1,3366.6,3.2078]
[1735772975467,0.29763,3366.7,3366.6,3.2078]
[1735772975866,2.24550359,3366.9,3366.3,0.29766]
[1735772976068,3.2078,3366.7,3366.6,0.29764]
[1735772977564,3.50543,3366.7,3366.6,0.29764]
[1735772978069,3.2078,3366.7,3366.6,0.29764]
[1735772980372,0.29762,3366.9,3366.7,0.29763]
[1735772981071,0.29762,3366.8,3366.7,0.29763]
[1735772981769,1.9055,3367.0,3366.7,0.29763]
[1735772981969,0.29762,3366.9,3366.7,0.29763]
[1735772982370,1.9055,3367.0,3366.7,0.29763]
[1735772982371,0.29762,3366.8,3366.7,0.29763]
[1735772984868,0.29762,3366.9,3366.8,0.29762]
[1735772990270,2.61594409,3366.9,3365.9,0.74424]
[1735772990580,2.61594409,3366.9,3365.7,3.56898572]
[1735772990581,0.29768,3366.2,3366.1,0.29768]
[1735772992277,0.29771,3365.9,3365.8,0.29771]
[1735772992883,2.24550359,3366.2,3365.8,0.29771]
[1735772993183,2.24550359,3366.2,3365.6,0.6376]
[1735772993385,0.29771,3365.9,3365.6,0.6376]
[1735772993580,0.5841,3365.8,3365.7,0.29772]
[1735773001086,0.5841,3365.8,3365.6,0.29773]
[1735773001381,0.29773,3365.6,3365.4,0.29774]
[1735773001580,0.29773,3365.6,3365.5,0.29773]
[1735773001781,3.50552,3365.7,3365.5,0.29773]
[1735773002283,0.29773,3365.6,3365.4,0.29774]
[1735773002484,3.50552,3365.7,3365.5,0.29773]
[1735773003584,0.29773,3365.6,3365.5,0.29773]
[1735773003785,3.2078,3365.7,3365.5,0.29773]
[1735773003985,3.50552,3365.7,3365.5,0.29773]
[1735773004785,3.50552,3365.7,3365.3,0.6261]
[1735773004993,3.2078,3365.7,3365.6,0.29773]
[1735773017886,3.2078,3365.7,3365.5,0.29773]
[1735773018092,3.2078,3365.7,3365.4,0.29775]
[1735773018300,0.29774,3365.5,3365.4,0.29774]
[1735773019498,0.5956,3365.5,3365.4,0.29774]
[1735773020298,0.37004,3365.6,3365.3,0.6261]
[1735773020595,3.50552,3365.7,3365.6,0.29773]
[1735773020798,3.57822594,3365.7,3365.6,0.29773]
[1735773021496,3.2078,3365.7,3365.6,0.29773]
[1735773024197,3.2078,3365.7,3365.6,1.46673]
[1735773027303,3.2078,3365.7,3365.6,0.29773]
[1735773027499,0.29773,3365.6,3365.3,0.6261]
[1735773027803,0.90293,3365.6,3365.5,0.29774]
[1735773028002,1.27351572,3365.6,3365.5,0.29774]
[1735773028901,0.97578572,3365.6,3365.5,0.29774]
[1735773029109,0.6052,3365.6,3365.5,0.29774]
[1735773031908,3.2078,3365.7,3365.6,0.29773]
[1735773036610,3.50552,3365.7,3365.6,0.29773]
[1735773037211,3.2078,3365.7,3365.2,1.169]
[1735773037411,0.29775,3365.4,3365.3,0.29775]
[1735773037607,0.29775,3365.3,3365.2,1.169]
[1735773037813,1.51355,3365.3,3365.2,1.169]
[1735773038213,1.51355,3365.3,3365.1,0.29777]
[1735773038515,0.2978,3364.8,3364.6,4.97295002]
[1735773038712,0.606,3364.7,3364.6,4.97295002]
[1735773039311,0.606,3364.7,3364.6,0.29781]
[1735773041307,3.50557,3365.2,3364.4,3.2078]
[1735773041512,0.625,3365.0,3364.9,0.29779]
[1735773043218,3.2078,3365.2,3364.4,3.2078]
[1735773043518,4.12693,3365.7,3365.5,0.29773]
[1735773043718,0.625,3365.6,3365.5,0.29773]
[1735773044921,0.625,3365.6,3365.1,2.9913]
[1735773045122,0.92273,3365.6,3365.4,0.29774]
[1735773046520,0.92273,3365.6,3365.5,0.29774]
[1735773046521,0.625,3365.6,3365.5,0.29774]
[1735773049824,0.29775,3365.4,3365.2,0.29776]
[1735773050022,0.5915,3365.3,3365.2,0.29776]
[1735773051219,0.5915,3365.3,3364.8,0.624]
[1735773051525,0.88926,3365.3,3365.1,0.29777]
[1735773051725,0.29776,3365.2,3364.9,1.169]
[1735773051927,0.29776,3365.2,3365.0,0.29778]
[1735773052122,0.62,3365.1,3365.0,0.29778]
[1735773053526,0.91778,3365.1,3365.0,0.29778]
[1735773055037,0.62,3365.1,3365.0,0.29778]
[1735773057430,3.7993,3365.3,3365.2,0.29776]
[1735773057634,3.2078,3365.8,3365.7,0.29772]
[1735773059729,1.2882,3366.0,3365.4,4.9963]
[1735773059929,3.2078,3366.2,3366.1,0.29768]
[1735773060324,0.29766,3366.4,3365.9,1.26]
[1735773060527,0.29766,3366.4,3366.2,0.29767]
[1735773060736,0.29766,3366.4,3365.9,1.26]
[1735773060945,0.29766,3366.4,3366.3,0.29767]
[1735773062332,0.36953447,3366.5,3365.9,1.26]
[1735773062531,2.54317359,3366.3,3366.2,0.29767]
[1735773068935,0.36913089,3366.5,3366.1,0.74422]
[1735773069140,4.4487,3366.6,3366.0,0.6061]
[1735773069141,4.4487,3366.6,3366.5,0.29765]
[1735773069531,3.2078,3366.6,3366.5,0.29765]
[1735773069733,1.59721283,3367.1,3366.3,0.74417]
[1735773069932,1.2281,3367.1,3366.3,0.74417]
[1735773070237,1.2281,3367.1,3367.0,0.2976]
[1735773071436,2.54309359,3367.2,3366.6,0.588]
[1735773071437,3.2078,3367.3,3367.1,0.29759]
[1735773071643,3.2078,3367.3,3367.2,0.29759]
[1735773072840,3.50538,3367.3,3367.2,0.29759]
[1735773073036,4.13918,3367.3,3367.2,0.29759]
[1735773073439,3.8416,3367.3,3367.2,0.29759]
[1735773074037,4.13918,3367.3,3367.2,0.29759]
[1735773074539,3.8416,3367.3,3367.2,0.29759]
[1735773074941,4.13918,3367.3,3367.2,0.29759]
[1735773075442,0.29757,3367.4,3366.8,0.74404]
[1735773075644,0.29757,3367.4,3367.3,0.29758]
[1735773075946,0.29759,3367.3,3367.2,0.29758]
[1735773077139,2.24550359,3367.5,3366.7,1.33138]
[1735773077345,0.29758,3367.3,3367.2,0.29758]
[1735773078242,0.29758,3367.3,3366.7,0.5873]
[1735773078243,3.2078,3367.3,3366.7,0.5873]
[1735773078441,2.24550359,3367.0,3366.7,0.5873]
[1735773078639,0.29765,3366.5,3366.2,0.29767]
[1735773078849,0.29768,3366.2,3366.1,0.29768]
[1735773079039,0.29768,3366.2,3365.9,1.168]
[1735773079040,0.29767,3366.3,3366.2,0.29767]
[1735773080245,0.6425,3366.4,3366.3,0.29767]
[1735773080447,0.6425,3366.4,3365.9,1.168]
[1735773080448,0.29765,3366.5,3366.4,0.29766]
[1735773081248,3.8552,3366.8,3365.9,1.168]
[1735773081455,4.15282,3366.8,3366.7,0.29763]
[1735773081640,4.15282,3366.8,3366.6,0.29763]
[1735773081945,4.15282,3366.8,3366.2,3.95197]
[1735773082134,4.15282,3366.8,3366.7,0.29763]
[1735773082344,3.2078,3366.8,3366.7,0.29763]
[1735773083345,0.29762,3366.9,3366.8,0.29761]
[1735773083541,2.24550359,3367.0,3366.7,0.29763]
[1735773083542,0.29763,3366.8,3366.7,0.29763]
[1735773084141,2.24550359,3367.0,3366.5,0.6465]
[1735773084348,0.29763,3366.8,3366.7,0.29763]
[1735773086347,0.29763,3366.8,3366.5,0.6465]
[1735773086348,2.24550359,3367.0,3366.5,0.6465]
[1735773086543,2.54311359,3367.0,3366.9,0.29761]
[1735773086841,0.6425,3367.1,3367.0,0.2976]
[1735773087542,3.2078,3367.2,3367.1,0.2976]
[1735773088547,0.5979,3367.3,3367.2,0.29759]
[1735773089642,0.89548,3367.3,3367.2,0.29759]
[1735773091148,0.5979,3367.3,3367.2,0.29759]
[1735773091541,0.6185,3367.5,3367.4,0.29757]
[1735773091741,0.91607,3367.5,3367.3,0.29757]
[1735773092037,0.91607,3367.5,3367.4,0.599]
[1735773092436,0.29757,3367.4,3367.3,0.29757]
[1735773093147,1.2434,3367.5,3366.8,1.34306]
[1735773093148,0.29758,3367.3,3367.2,0.29758]
[1735773097858,5.45330359,3367.3,3366.8,0.599]
[1735773098050,0.2976,3367.1,3367.0,0.2976]
[1735773098350,5.45330359,3367.3,3366.9,0.29761]
[1735773098351,0.36950372,3367.2,3366.9,0.29761]
[1735773098547,0.9119,3367.0,3366.9,0.29761]
[1735773104561,0.6143,3367.0,3366.9,0.29761]
[1735773105261,2.85980359,3367.0,3366.4,0.5903]
[1735773105462,0.29765,3366.6,3366.5,0.29765]
[1735773107070,2.91276026,3366.7,3366.5,0.29765]
[1735773107564,2.54314359,3366.7,3366.6,0.29764]
[1735773107761,2.24550359,3366.7,3366.6,0.29764]
[1735773107965,3.2078,3366.8,3366.7,0.29763]
[1735773108170,3.50542,3366.8,3366.7,0.29763]
[1735773108368,3.87512504,3366.8,3366.7,0.29763]
[1735773108870,3.87520036,3366.8,3366.7,0.29763]
[1735773110768,3.50542,3366.8,3366.7,0.29763]
[1735773110980,3.2078,3366.8,3366.7,0.29763]
[1735773112072,0.5955,3366.9,3366.8,0.29762]
[1735773113969,0.5955,3366.9,3366.3,0.74416]
[1735773113970,0.29763,3366.8,3366.7,0.29762]
[1735773114170,3.50543,3366.8,3366.7,0.29762]
[1735773114869,3.8755062,3366.8,3366.7,0.29762]
[1735773115774,3.8755062,3366.8,3366.1,3.8466]
[1735773115775,3.5778762,3366.8,3366.1,3.8466]
[1735773115975,0.29768,3366.2,3366.1,0.29768]
[1735773116669,2.21446993,3366.3,3365.8,1.1901]
[1735773117069,2.51213993,3366.3,3366.2,0.29767]
[1735773118777,4.09000359,3366.3,3366.2,0.29767]
[1735773118974,1.2272,3366.3,3366.2,0.29767]
[1735773121178,3.47270359,3366.3,3366.2,0.29767]
[1735773121371,3.47270359,3366.3,3366.1,0.29767]
[1735773121676,3.77037359,3366.3,3366.2,0.29767]
[1735773122579,3.47270359,3366.3,3366.2,0.29767]
[1735773122780,3.77037359,3366.3,3366.2,0.29767]
[1735773123776,3.47270359,3366.3,3366.2,0.29767]
[1735773126378,3.77037359,3366.3,3366.2,0.29767]
[1735773129077,3.77037359,3366.3,3365.9,0.2977]
[1735773129078,0.29769,3366.0,3365.9,0.2977]
[1735773129376,0.2977,3365.9,3365.8,0.89971]
[1735773129783,2.24550359,3366.0,3365.5,3.2078]
[1735773130087,0.29775,3365.4,3365.3,0.29775]
[1735773130283,2.24550359,3365.6,3365.1,1.2405]
[1735773130487,0.29775,3365.4,3365.3,0.29775]
[1735773131186,0.6251,3365.5,3365.1,1.2405]
[1735773131388,0.6251,3365.5,3365.4,0.29775]
[1735773132482,0.6179,3365.8,3365.7,0.29772]
[1735773133683,0.91561,3365.8,3365.7,0.29772]
[1735773134389,0.6179,3365.8,3365.7,0.29772]
[1735773134782,2.54319359,3366.0,3365.9,0.2977]
[1735773136181,2.91300668,3366.0,3365.9,0.2977]
[1735773136384,2.54319359,3366.0,3365.9,0.2977]
[1735773137586,2.24550359,3366.0,3365.9,0.2977]
[1735773139085,0.6394,3366.1,3365.7,0.6209]
[1735773139285,0.6394,3366.1,3366.0,0.29769]
[1735773144390,5.45330359,3366.3,3365.7,2.53319]
[1735773144691,5.45330359,3366.3,3366.2,0.29767]
[1735773146488,2.24550359,3366.3,3366.2,0.29767]
[1735773147294,2.24550359,3366.6,3366.5,0.29765]
[1735773147494,2.61602851,3366.6,3366.5,0.29765]
[1735773147697,3.2078,3366.7,3366.6,0.29764]
[1735773148995,2.24550359,3367.0,3366.6,0.29764]
[1735773149188,2.24550359,3367.0,3366.9,0.29761]
[1735773149395,2.24550359,3367.3,3366.8,0.74405]
[1735773149695,2.24550359,3367.3,3367.2,0.29759]
[1735773151492,2.24550359,3367.3,3366.9,1.2499]
[1735773151686,2.24550359,3367.0,3366.9,0.29761]
[1735773152197,3.51130359,3367.0,3366.9,0.29761]
[1735773156094,3.51130359,3367.0,3366.7,0.5796]
[1735773156299,3.50543,3366.8,3366.6,0.29764]
[1735773156496,2.24550359,3366.7,3365.9,0.74425]
[1735773156794,0.29767,3366.3,3366.2,0.29767]
[1735773157299,0.29769,3366.1,3366.0,0.29769]
[1735773157495,2.24550359,3366.1,3365.6,1.168]
[1735773157704,2.54319359,3366.1,3365.6,1.168]
[1735773158300,2.54319359,3366.1,3366.0,0.29769]
[1735773158802,2.24550359,3366.1,3366.0,0.29769]
[1735773159496,2.24550359,3366.1,3365.6,1.168]
[1735773159691,2.54318359,3366.1,3366.0,0.29769]
[1735773160097,2.54318359,3366.1,3365.9,0.29769]
[1735773160601,2.54318359,3366.1,3366.0,0.29769]
[1735773161399,2.24550359,3366.1,3366.0,0.29769]
[1735773165200,1.2154,3366.3,3366.2,0.29767]
[1735773165998,0.5896,3366.3,3366.2,0.29767]
[1735773169703,0.87954,3366.6,3365.8,0.74427]
[1735773170005,1.51474,3366.6,3366.5,0.29765]
[1735773170206,1.2171,3366.6,3366.5,0.29765]
[1735773170910,1.51474,3366.6,3366.5,0.29765]
[1735773172411,1.2171,3366.6,3366.5,0.29765]
[1735773172906,0.29765,3366.5,3366.4,0.29765]
[1735773174202,1.51475,3366.6,3366.5,0.29765]
[1735773175008,1.2171,3366.6,3366.1,1.1931]
[1735773175308,2.54316359,3366.5,3366.4,0.29765]
[1735773176303,0.29768,3366.2,3365.7,1.32429]
[1735773176516,3.50549,3366.1,3366.0,0.29769]
[1735773176807,4.13309,3366.1,3366.0,0.29769]
[1735773177502,3.8354,3366.1,3366.0,0.29769]
[1735773179608,3.8354,3366.1,3365.7,2.9243]
[1735773179915,0.9296,3366.0,3365.9,0.2977]
[1735773181206,0.74426,3365.9,3365.3,3.50555]
[1735773181511,0.29776,3365.3,3365.2,0.29776]
[1735773181709,2.24550359,3365.4,3365.3,0.29775]
[1735773181909,2.54325359,3365.4,3365.3,0.29775]
[1735773182405,2.87740359,3365.4,3365.3,0.29775]
[1735773183705,0.6319,3365.4,3365.3,0.29775]
[1735773186315,3.2078,3365.6,3365.5,0.29774]
[1735773186515,2.24550359,3365.7,3365.6,0.29773]
[1735773186716,6.07520359,3366.0,3365.3,0.74439]
[1735773186908,6.07520359,3366.0,3365.9,0.2977]
[1735773187107,6.37289359,3366.0,3365.9,0.2977]
[1735773187909,6.07520359,3366.0,3365.9,0.2977]
[1735773188516,6.37289359,3366.0,3365.9,0.2977]
[1735773190417,6.07520359,3366.0,3365.9,0.2977]
[1735773190818,3.8297,3366.0,3365.9,0.2977]
[1735773191820,0.29774,3365.6,3365.5,0.29773]
[1735773194412,3.50554,3365.6,3365.5,0.29773]
[1735773194916,0.29774,3365.6,3365.5,0.29773]
[1735773195116,3.50554,3365.6,3365.5,0.29773]
[1735773200513,2.24550359,3365.7,3365.2,1.37821]
[1735773200718,0.37018345,3365.9,3365.8,0.29771]
[1735773200919,0.2977,3365.9,3365.8,0.29771]
[1735773202213,0.29774,3365.5,3365.4,0.29774]
[1735773202415,0.29775,3365.4,3365.3,0.601]
[1735773202616,0.94045,3365.4,3365.3,0.601]
[1735773202916,0.29779,3365.1,3365.0,0.29778]
[1735773203116,2.24550359,3365.1,3364.8,3.2078]
[1735773203317,0.29779,3364.9,3364.8,3.50559]
[1735773203818,0.29779,3364.9,3364.8,3.2078]
[1735773204120,0.29783,3364.5,3364.4,0.29783]
[1735773204320,2.54333359,3364.5,3364.4,0.29783]
[1735773206111,2.24550359,3364.5,3364.4,0.29783]
[1735773206315,0.29781,3364.7,3364.5,0.29782]
[1735773206618,0.29781,3364.7,3364.6,0.29782]
[1735773207016,3.47050359,3364.8,3364.3,4.4517]
[1735773207319,0.5927,3364.8,3364.7,0.29781]
[1735773209121,6.08610359,3365.1,3365.0,0.29778]
[1735773209321,3.8406,3365.1,3365.0,0.29778]
[1735773209721,3.8406,3365.1,3364.3,4.4517]
[1735773210022,2.24550359,3364.5,3364.3,4.4517]
[1735773210227,0.29786,3364.2,3364.1,0.29786]
[1735773210528,0.29787,3364.0,3363.9,0.29787]
[1735773210826,2.54337359,3364.1,3364.0,0.29787]
[1735773211320,2.24550359,3364.1,3364.0,0.29787]
[1735773212417,2.54336359,3364.1,3364.0,0.29787]
[1735773212617,2.54337359,3364.1,3363.9,0.29788]
[1735773212935,0.29788,3363.9,3363.8,0.29788]
[1735773213121,0.29791,3363.5,3363.4,0.6293]
[1735773213425,2.24550359,3363.5,3363.3,0.29793]
[1735773213625,2.24550359,3363.5,3363.1,0.6134]
[1735773213819,2.54341359,3363.5,3363.2,0.29794]
[1735773214022,2.54341359,3363.5,3363.4,0.29792]
[1735773214521,2.54341359,3363.5,3363.3,0.29793]
[1735773214918,2.24550359,3363.5,3363.1,0.6134]
[1735773215228,2.24550359,3363.5,3362.9,1.168]
[1735773215423,2.24550359,3363.1,3362.8,1.8304]
[1735773215729,0.29799,3362.7,3362.5,0.298]
[1735773216028,2.24550359,3362.6,3362.2,4.3758]
[1735773216222,2.54350359,3362.6,3362.2,4.3758]
[1735773216417,2.24550359,3362.6,3362.5,0.298]
[1735773217425,3.2078,3362.8,3362.2,4.3758]
[1735773217621,3.2078,3362.8,3362.7,0.29798]
[1735773218121,2.24550359,3362.9,3362.3,0.74506]
[1735773218320,2.24550359,3362.9,3362.8,0.29798]
[1735773222829,2.24550359,3362.9,3362.2,4.3758]
[1735773223029,2.24550359,3362.6,3362.2,4.3758]
[1735773223434,2.24550359,3362.6,3362.5,0.298]
[1735773223734,2.24550359,3362.9,3362.2,4.3758]